[Event "*** Titled Tuesday Blitz"]
[Site "Chess.com"]
[Date "2020.05.19"]
[Round "1"]
[White "Abund"]
[Black "Nathan_Filgueiras"]
[Result "1/2-1/2"]
[WhiteElo "2611"]
[BlackElo "2330"]
[TimeControl "180+1"]
[EndTime "12:09:34 PDT"]
[Termination "Game drawn by repetition"]

1. d4 {[%clk 0:02:56.6]} 1... Nf6 {[%clk 0:02:57.9]} 2. c4 {[%clk 0:02:50]} 2...
e6 {[%clk 0:02:55.2]} 3. Nc3 {[%clk 0:02:49.6]} 3... Bb4 {[%clk 0:02:50.7]} 4.
f3 {[%clk 0:02:48.9]} 4... d5 {[%clk 0:02:41]} 5. a3 {[%clk 0:02:16.9]} 5...
Bxc3+ {[%clk 0:02:39.1]} 6. bxc3 {[%clk 0:02:17.8]} 6... c5 {[%clk 0:02:31.3]}
7. cxd5 {[%clk 0:02:02.9]} 7... Nxd5 {[%clk 0:02:12.3]} 8. dxc5 {[%clk
0:02:01.2]} 8... Qa5 {[%clk 0:01:38.8]} 9. e4 {[%clk 0:01:59.9]} 9... Nxc3
{[%clk 0:01:24.1]} 10. Bd2 {[%clk 0:01:29.4]} 10... Nxd1 {[%clk 0:01:23.2]} 11.
Bxa5 {[%clk 0:01:27.9]} 11... Ne3 {[%clk 0:01:22.8]} 12. Kf2 {[%clk 0:00:38.1]}
12... Nxf1 {[%clk 0:01:10.4]} 13. Rxf1 {[%clk 0:00:39]} 13... Nc6 {[%clk
0:01:10.5]} 14. Bc3 {[%clk 0:00:37.4]} 14... e5 {[%clk 0:01:10.3]} 15. Ne2
{[%clk 0:00:35.3]} 15... Be6 {[%clk 0:01:09.9]} 16. Rd1 {[%clk 0:00:33.1]} 16...
Ke7 {[%clk 0:01:08.1]} 17. Nc1 {[%clk 0:00:22.4]} 17... Rhd8 {[%clk 0:01:05.2]}
18. Nd3 {[%clk 0:00:22]} 18... f6 {[%clk 0:00:59.9]} 19. Nb4 {[%clk 0:00:22.2]}
19... Nxb4 {[%clk 0:00:42.9]} 20. axb4 {[%clk 0:00:20.9]} 20... Bb3 {[%clk
0:00:41.2]} 21. Rxd8 {[%clk 0:00:16.3]} 21... Rxd8 {[%clk 0:00:42.1]} 22. Rb1
{[%clk 0:00:16.5]} 22... Bc4 {[%clk 0:00:41.1]} 23. Rb2 {[%clk 0:00:14.9]} 23...
Rd3 {[%clk 0:00:40]} 24. Bd2 {[%clk 0:00:11.6]} 24... a6 {[%clk 0:00:40]} 25.
Ke1 {[%clk 0:00:11]} 25... h5 {[%clk 0:00:36.4]} 26. Rc2 {[%clk 0:00:11]} 26...
Bb5 {[%clk 0:00:36.2]} 27. Rc3 {[%clk 0:00:10.5]} 27... Rd4 {[%clk 0:00:34.4]}
28. Rc1 {[%clk 0:00:09.5]} 28... h4 {[%clk 0:00:32]} 29. g3 {[%clk 0:00:08.2]}
29... hxg3 {[%clk 0:00:30.8]} 30. hxg3 {[%clk 0:00:08.1]} 30... Rd3 {[%clk
0:00:29.9]} 31. Rc3 {[%clk 0:00:08.1]} 31... Rd4 {[%clk 0:00:29.6]} 32. Rc1
{[%clk 0:00:08.3]} 32... Ke6 {[%clk 0:00:27.6]} 33. Bc3 {[%clk 0:00:08.1]} 33...
Rd3 {[%clk 0:00:27.3]} 34. Kf2 {[%clk 0:00:08.5]} 34... g6 {[%clk 0:00:20.4]}
35. Rc2 {[%clk 0:00:07]} 35... f5 {[%clk 0:00:19.8]} 36. exf5+ {[%clk
0:00:07.5]} 36... gxf5 {[%clk 0:00:20.7]} 37. Rc1 {[%clk 0:00:07.6]} 37... e4
{[%clk 0:00:19.2]} 38. fxe4 {[%clk 0:00:07.7]} 38... fxe4 {[%clk 0:00:20.1]} 39.
Be1 {[%clk 0:00:07.7]} 39... Kf5 {[%clk 0:00:17.1]} 40. Rc3 {[%clk 0:00:07.6]}
40... Rd4 {[%clk 0:00:16.2]} 41. Re3 {[%clk 0:00:07.2]} 41... Rc4 {[%clk
0:00:13.7]} 42. Bc3 {[%clk 0:00:06.8]} 42... Kg4 {[%clk 0:00:12.2]} 43. Ke1
{[%clk 0:00:07.2]} 43... Kf5 {[%clk 0:00:10.6]} 44. Kd2 {[%clk 0:00:07.5]} 44...
a5 {[%clk 0:00:09.8]} 45. bxa5 {[%clk 0:00:07.1]} 45... Rxc5 {[%clk 0:00:09.7]}
46. Ke1 {[%clk 0:00:05.6]} 46... Rc4 {[%clk 0:00:09.1]} 47. Kf2 {[%clk
0:00:05.8]} 47... Ra4 {[%clk 0:00:09.2]} 48. Ke1 {[%clk 0:00:03.6]} 48... Ra2
{[%clk 0:00:09.1]} 49. Bd2 {[%clk 0:00:03.5]} 49... Ra1+ {[%clk 0:00:08.3]} 50.
Kf2 {[%clk 0:00:03.3]} 50... Rf1+ {[%clk 0:00:08.7]} 51. Kg2 {[%clk 0:00:03.7]}
51... Rd1 {[%clk 0:00:08.9]} 52. Be1 {[%clk 0:00:04.1]} 52... Rb1 {[%clk
0:00:08.3]} 53. Kf2 {[%clk 0:00:04.5]} 53... Rb2+ {[%clk 0:00:08.1]} 54. Kg1
{[%clk 0:00:05]} 54... Bd3 {[%clk 0:00:06.8]} 55. Bf2 {[%clk 0:00:03.4]} 55...
Ra2 {[%clk 0:00:06.8]} 56. Be1 {[%clk 0:00:02.9]} 56... Kg4 {[%clk 0:00:07.2]}
57. Bf2 {[%clk 0:00:03.2]} 57... Rxa5 {[%clk 0:00:07.4]} 58. Re1 {[%clk
0:00:03.5]} 58... Ra2 {[%clk 0:00:07.4]} 59. Rc1 {[%clk 0:00:03.8]} 59... b5
{[%clk 0:00:07.7]} 60. Bc5 {[%clk 0:00:04]} 60... Kf3 {[%clk 0:00:07.5]} 61. Re1
{[%clk 0:00:04.2]} 61... Rb2 {[%clk 0:00:06.9]} 62. Re3+ {[%clk 0:00:04.3]}
62... Kg4 {[%clk 0:00:06.6]} 63. Re1 {[%clk 0:00:05.2]} 63... Kxg3 {[%clk
0:00:06.5]} 64. Ra1 {[%clk 0:00:05]} 64... Rb1+ {[%clk 0:00:05.7]} 65. Rxb1
{[%clk 0:00:05.1]} 65... Bxb1 {[%clk 0:00:06.6]} 66. Kf1 {[%clk 0:00:05.7]}
66... Bd3+ {[%clk 0:00:07.5]} 67. Ke1 {[%clk 0:00:06]} 67... Kf3 {[%clk
0:00:08.4]} 68. Kd2 {[%clk 0:00:06.7]} 68... Bc4 {[%clk 0:00:08.3]} 69. Bd4
{[%clk 0:00:03.5]} 69... Kf4 {[%clk 0:00:08.2]} 70. Be3+ {[%clk 0:00:03.5]}
70... Ke5 {[%clk 0:00:08.5]} 71. Bc5 {[%clk 0:00:03.9]} 71... Kd5 {[%clk
0:00:09.4]} 72. Bb4 {[%clk 0:00:04.1]} 72... Kd4 {[%clk 0:00:09.4]} 73. Bc3+
{[%clk 0:00:04.5]} 73... Kd5 {[%clk 0:00:10]} 74. Bb4 {[%clk 0:00:04.5]} 74...
Bd3 {[%clk 0:00:10.3]} 75. Kc3 {[%clk 0:00:04.3]} 75... e3 {[%clk 0:00:10.5]}
76. Kxd3 {[%clk 0:00:03.8]} 76... e2 {[%clk 0:00:10.1]} 77. Kxe2 {[%clk
0:00:04.2]} 77... Kc4 {[%clk 0:00:10.1]} 78. Bf8 {[%clk 0:00:05.1]} 78... b4
{[%clk 0:00:09.8]} 79. Kd1 {[%clk 0:00:06]} 79... b3 {[%clk 0:00:09]} 80. Kc1
{[%clk 0:00:06.9]} 80... b2+ {[%clk 0:00:09.4]} 81. Kb1 {[%clk 0:00:07.8]} 81...
Kb3 {[%clk 0:00:09.2]} 82. Bh6 {[%clk 0:00:08.7]} 82... Ka3 {[%clk 0:00:09.2]}
83. Bg7 {[%clk 0:00:09.6]} 83... Kb3 {[%clk 0:00:10.1]} 84. Bh8 {[%clk
0:00:10.5]} 84... Ka3 {[%clk 0:00:10.5]} 85. Bg7 {[%clk 0:00:11.4]} 85... Kb3
{[%clk 0:00:11.4]} 86. Bh8 {[%clk 0:00:12.3]} 86... Ka3 {[%clk 0:00:12.3]} 87.
Bf6 {[%clk 0:00:13.2]} 87... Kb3 {[%clk 0:00:13.2]} 88. Bh8 {[%clk 0:00:14.1]}
1/2-1/2

[Event "*** Titled Tuesday Blitz"]
[Site "Chess.com"]
[Date "2020.05.19"]
[Round "1"]
[White "grunbergmihai"]
[Black "ameetghasi100"]
[Result "1/2-1/2"]
[WhiteElo "2389"]
[BlackElo "2713"]
[TimeControl "180+1"]
[EndTime "12:10:01 PDT"]
[Termination "Game drawn - timeout vs insufficient material"]

1. Nf3 {[%clk 0:03:00.9]} 1... g6 {[%clk 0:02:56.6]} 2. d4 {[%clk 0:02:56.5]}
2... Bg7 {[%clk 0:02:57.5]} 3. c4 {[%clk 0:02:55.7]} 3... Nf6 {[%clk 0:02:57.8]}
4. g3 {[%clk 0:02:55.8]} 4... O-O {[%clk 0:02:58.3]} 5. Bg2 {[%clk 0:02:55.9]}
5... d6 {[%clk 0:02:59.2]} 6. O-O {[%clk 0:02:56]} 6... c6 {[%clk 0:03:00.1]} 7.
Nc3 {[%clk 0:02:55.9]} 7... Qa5 {[%clk 0:02:59.3]} 8. e4 {[%clk 0:02:55]} 8...
Bg4 {[%clk 0:02:56.3]} 9. h3 {[%clk 0:02:53]} 9... Bxf3 {[%clk 0:02:52.3]} 10.
Bxf3 {[%clk 0:02:52.9]} 10... Nfd7 {[%clk 0:02:51.3]} 11. Be3 {[%clk 0:02:51.6]}
11... a6 {[%clk 0:02:45.9]} 12. a3 {[%clk 0:02:48]} 12... Qc7 {[%clk 0:02:39.4]}
13. Rc1 {[%clk 0:02:44.4]} 13... e5 {[%clk 0:02:37.6]} 14. d5 {[%clk 0:02:40.4]}
14... c5 {[%clk 0:02:32.3]} 15. Bg2 {[%clk 0:02:35.6]} 15... f5 {[%clk 0:02:31]}
16. f4 {[%clk 0:02:28.8]} 16... exf4 {[%clk 0:02:27.7]} 17. Bxf4 {[%clk
0:02:27.5]} 17... Ne5 {[%clk 0:02:27.7]} 18. exf5 {[%clk 0:02:23.6]} 18... Rxf5
{[%clk 0:02:26.1]} 19. Ne4 {[%clk 0:02:17.1]} 19... h6 {[%clk 0:02:18.6]} 20.
Qd2 {[%clk 0:02:14.3]} 20... g5 {[%clk 0:02:14.4]} 21. Be3 {[%clk 0:02:14]}
21... Rxf1+ {[%clk 0:02:12.8]} 22. Kxf1 {[%clk 0:02:11.2]} 22... Nbd7 {[%clk
0:02:08.4]} 23. Kg1 {[%clk 0:02:08.4]} 23... b5 {[%clk 0:02:07.5]} 24. cxb5
{[%clk 0:02:06.3]} 24... axb5 {[%clk 0:02:08.4]} 25. h4 {[%clk 0:01:58.2]} 25...
Ng4 {[%clk 0:01:59.5]} 26. hxg5 {[%clk 0:01:55.5]} 26... Nxe3 {[%clk 0:01:58]}
27. Qxe3 {[%clk 0:01:53.1]} 27... Bxb2 {[%clk 0:01:09.4]} 28. Rc2 {[%clk
0:01:41.9]} 28... Rxa3 {[%clk 0:01:01.6]} 29. Qf2 {[%clk 0:01:17.9]} 29... Be5
{[%clk 0:00:54.1]} 30. gxh6 {[%clk 0:01:07.5]} 30... Nf8 {[%clk 0:00:48.3]} 31.
Ng5 {[%clk 0:00:57.2]} 31... Qe7 {[%clk 0:00:44.2]} 32. Qf5 {[%clk 0:00:48.2]}
32... Rxg3 {[%clk 0:00:36.1]} 33. Ne6 {[%clk 0:00:31.1]} 33... Nxe6 {[%clk
0:00:34.6]} 34. dxe6 {[%clk 0:00:31.1]} 34... Bd4+ {[%clk 0:00:32.5]} 35. Kf1
{[%clk 0:00:29]} 35... Rg5 {[%clk 0:00:33]} 36. h7+ {[%clk 0:00:23.6]} 36... Kh8
{[%clk 0:00:29.9]} 37. Qf7 {[%clk 0:00:22]} 37... Qxf7+ {[%clk 0:00:28.2]} 38.
exf7 {[%clk 0:00:21.9]} 38... Rf5+ {[%clk 0:00:28.7]} 39. Ke2 {[%clk 0:00:21.5]}
39... Rxf7 {[%clk 0:00:27.6]} 40. Be4 {[%clk 0:00:21.2]} 40... Re7 {[%clk
0:00:26.6]} 41. Kf3 {[%clk 0:00:21]} 41... Rf7+ {[%clk 0:00:25.6]} 42. Kg4
{[%clk 0:00:19.9]} 42... Be5 {[%clk 0:00:26.1]} 43. Bf5 {[%clk 0:00:19.5]} 43...
Kg7 {[%clk 0:00:24.3]} 44. Ra2 {[%clk 0:00:18]} 44... Kh6 {[%clk 0:00:21.2]} 45.
Ra8 {[%clk 0:00:16.9]} 45... Rxf5 {[%clk 0:00:12.8]} 46. Kxf5 {[%clk 0:00:16.4]}
46... Kxh7 {[%clk 0:00:13]} 47. Ra7+ {[%clk 0:00:16.3]} 47... Kh6 {[%clk
0:00:12.7]} 48. Ra8 {[%clk 0:00:15.3]} 48... b4 {[%clk 0:00:11.7]} 49. Rb8
{[%clk 0:00:14.3]} 49... Kg7 {[%clk 0:00:11.5]} 50. Ke6 {[%clk 0:00:13.9]} 50...
Kg6 {[%clk 0:00:11]} 51. Rg8+ {[%clk 0:00:13.1]} 51... Kh5 {[%clk 0:00:09.3]}
52. Kf5 {[%clk 0:00:12]} 52... Kh4 {[%clk 0:00:08.7]} 53. Ke4 {[%clk 0:00:10.4]}
53... b3 {[%clk 0:00:07.4]} 54. Kd3 {[%clk 0:00:09.7]} 54... b2 {[%clk
0:00:07.2]} 55. Kc2 {[%clk 0:00:09.3]} 55... Bd4 {[%clk 0:00:06.3]} 56. Rg6
{[%clk 0:00:08.6]} 56... Be5 {[%clk 0:00:06.3]} 57. Rg8 {[%clk 0:00:08.5]} 57...
Kh5 {[%clk 0:00:06.5]} 58. Rg2 {[%clk 0:00:07.9]} 58... c4 {[%clk 0:00:05.5]}
59. Rg1 {[%clk 0:00:07]} 59... c3 {[%clk 0:00:05.1]} 60. Kd3 {[%clk 0:00:07]}
60... Kh4 {[%clk 0:00:05]} 61. Kc2 {[%clk 0:00:07]} 61... Bd4 {[%clk 0:00:04.7]}
62. Rg6 {[%clk 0:00:06.6]} 62... Be5 {[%clk 0:00:04]} 63. Rg8 {[%clk 0:00:06.5]}
63... Bg3 {[%clk 0:00:03.3]} 64. Rg6 {[%clk 0:00:06.2]} 64... d5 {[%clk
0:00:02.9]} 65. Rb6 {[%clk 0:00:05.2]} 65... d4 {[%clk 0:00:03.8]} 66. Rb4
{[%clk 0:00:05]} 66... Kg4 {[%clk 0:00:04.7]} 67. Rxd4+ {[%clk 0:00:04.8]} 67...
Kf3 {[%clk 0:00:05.6]} 68. Rd3+ {[%clk 0:00:04.7]} 68... Kf2 {[%clk 0:00:04.9]}
69. Rxc3 {[%clk 0:00:04.8]} 69... Be5 {[%clk 0:00:05.4]} 70. Rb3 {[%clk
0:00:04.4]} 70... Bd4 {[%clk 0:00:05.6]} 71. Rxb2 {[%clk 0:00:04.2]} 71... Ke3
{[%clk 0:00:06.5]} 72. Rb3+ {[%clk 0:00:03.9]} 72... Ke4 {[%clk 0:00:07.4]} 73.
Rb4 {[%clk 0:00:03.8]} 73... Kd5 {[%clk 0:00:08.3]} 74. Kb3 {[%clk 0:00:03.7]}
74... Bc5 {[%clk 0:00:09.1]} 75. Rb5 {[%clk 0:00:03.5]} 75... Kc6 {[%clk
0:00:08]} 76. Kc4 {[%clk 0:00:03.4]} 76... Bd6 {[%clk 0:00:08.5]} 77. Rf5 {[%clk
0:00:04]} 77... Bg3 {[%clk 0:00:07.4]} 78. Rf6+ {[%clk 0:00:03.8]} 78... Bd6
{[%clk 0:00:07.4]} 79. Re6 {[%clk 0:00:03.3]} 79... Kc7 {[%clk 0:00:06.4]} 80.
Rg6 {[%clk 0:00:04.2]} 80... Kc6 {[%clk 0:00:06]} 81. Kd4 {[%clk 0:00:04.2]}
81... Kc7 {[%clk 0:00:05.8]} 82. Kd5 {[%clk 0:00:03.7]} 82... Bb4 {[%clk
0:00:06]} 83. Rg7+ {[%clk 0:00:03.5]} 83... Kb6 {[%clk 0:00:05.9]} 84. Rg8
{[%clk 0:00:04.4]} 84... Kc7 {[%clk 0:00:05.4]} 85. Rg6 {[%clk 0:00:04.3]} 85...
Kb7 {[%clk 0:00:04.2]} 86. Rc6 {[%clk 0:00:05.2]} 86... Ba5 {[%clk 0:00:03.7]}
87. Rc4 {[%clk 0:00:04.8]} 87... Bb6 {[%clk 0:00:03.9]} 88. Kd6 {[%clk
0:00:04.6]} 88... Ka6 {[%clk 0:00:03.9]} 89. Rc2 {[%clk 0:00:03.7]} 89... Kb5
{[%clk 0:00:03.5]} 90. Rb2+ {[%clk 0:00:03]} 90... Ka5 {[%clk 0:00:03.8]} 91.
Kc6 {[%clk 0:00:03.9]} 91... Bd4 {[%clk 0:00:04.3]} 92. Rb1 {[%clk 0:00:02.9]}
92... Bc3 {[%clk 0:00:04.7]} 93. Kc5 {[%clk 0:00:02.3]} 93... Ka6 {[%clk
0:00:04.9]} 94. Rb3 {[%clk 0:00:01.9]} 94... Ba5 {[%clk 0:00:05.3]} 95. Rb5
{[%clk 0:00:01.4]} 95... Bc7 {[%clk 0:00:04.4]} 96. Kc6 {[%clk 0:00:01.4]} 96...
Ba5 {[%clk 0:00:04.5]} 1/2-1/2

[Event "*** Titled Tuesday Blitz"]
[Site "Chess.com"]
[Date "2020.05.19"]
[Round "1"]
[White "Dedic8"]
[Black "Elbek_Jumanov"]
[Result "0-1"]
[WhiteElo "2719"]
[BlackElo "2408"]
[TimeControl "180+1"]
[EndTime "12:10:10 PDT"]
[Termination "Elbek_Jumanov won by resignation"]

1. e4 {[%clk 0:02:56.9]} 1... c5 {[%clk 0:02:59.9]} 2. Nf3 {[%clk 0:02:57.1]}
2... e6 {[%clk 0:03:00.2]} 3. d4 {[%clk 0:02:57.4]} 3... cxd4 {[%clk 0:03:00.7]}
4. Nxd4 {[%clk 0:02:58.3]} 4... Nf6 {[%clk 0:03:01]} 5. Nc3 {[%clk 0:02:57.1]}
5... d6 {[%clk 0:03:01.2]} 6. g4 {[%clk 0:02:53.3]} 6... h6 {[%clk 0:03:00.7]}
7. h4 {[%clk 0:02:52.8]} 7... a6 {[%clk 0:02:52.7]} 8. Rg1 {[%clk 0:02:52.1]}
8... h5 {[%clk 0:02:51.2]} 9. g5 {[%clk 0:02:51.7]} 9... Ng4 {[%clk 0:02:50.7]}
10. Bh3 {[%clk 0:02:37.8]} 10... Nc6 {[%clk 0:02:41.2]} 11. Nxc6 {[%clk
0:02:17.7]} 11... bxc6 {[%clk 0:02:40.6]} 12. Bxg4 {[%clk 0:02:18.3]} 12... hxg4
{[%clk 0:02:39.9]} 13. Qxg4 {[%clk 0:02:19.2]} 13... g6 {[%clk 0:02:34.1]} 14.
b3 {[%clk 0:02:13.4]} 14... Bg7 {[%clk 0:02:31.8]} 15. Bb2 {[%clk 0:02:13.3]}
15... Qa5 {[%clk 0:02:28.9]} 16. Rg3 {[%clk 0:02:09.9]} 16... e5 {[%clk
0:01:59.9]} 17. Qe2 {[%clk 0:02:09.6]} 17... Rxh4 {[%clk 0:01:58.9]} 18. O-O-O
{[%clk 0:02:10]} 18... Qc7 {[%clk 0:01:52.5]} 19. Ba3 {[%clk 0:02:07.6]} 19...
Bf8 {[%clk 0:01:49.8]} 20. Qd2 {[%clk 0:01:52.1]} 20... Kd7 {[%clk 0:01:19.1]}
21. Rd3 {[%clk 0:01:47.3]} 21... c5 {[%clk 0:01:03.6]} 22. Nd5 {[%clk 0:01:39]}
22... Qc6 {[%clk 0:01:03]} 23. Nf6+ {[%clk 0:01:37.2]} 23... Kc7 {[%clk
0:01:01.6]} 24. Qa5+ {[%clk 0:01:33.3]} 24... Kb7 {[%clk 0:01:00.5]} 25. Rc3
{[%clk 0:00:49]} 25... Be6 {[%clk 0:00:53.5]} 26. Nd5 {[%clk 0:00:44.1]} 26...
Bxd5 {[%clk 0:00:38.9]} 27. exd5 {[%clk 0:00:38.3]} 27... Qb6 {[%clk 0:00:38.6]}
28. Qxb6+ {[%clk 0:00:36.5]} 28... Kxb6 {[%clk 0:00:39.1]} 29. Rf3 {[%clk
0:00:37.4]} 29... Ra7 {[%clk 0:00:37.9]} 30. Rg1 {[%clk 0:00:30.9]} 30... Bg7
{[%clk 0:00:31.2]} 31. Kd2 {[%clk 0:00:18.9]} 31... Rd4+ {[%clk 0:00:29.7]} 32.
Rd3 {[%clk 0:00:19.2]} 32... Rf4 {[%clk 0:00:29.5]} 33. Ke2 {[%clk 0:00:18.6]}
33... e4 {[%clk 0:00:27.4]} 34. Rh3 {[%clk 0:00:18.7]} 34... Bd4 {[%clk
0:00:26.9]} 35. Rg2 {[%clk 0:00:18.5]} 35... Rf5 {[%clk 0:00:26]} 36. c3 {[%clk
0:00:17.4]} 36... Bg7 {[%clk 0:00:20.8]} 37. Bc1 {[%clk 0:00:17.7]} 37... Rxd5
{[%clk 0:00:19.6]} 38. Be3 {[%clk 0:00:15.5]} 38... Rf5 {[%clk 0:00:18.5]} 39.
c4 {[%clk 0:00:15.3]} 39... d5 {[%clk 0:00:17.4]} 40. cxd5 {[%clk 0:00:15.1]}
40... Rxd5 {[%clk 0:00:18]} 41. Rh7 {[%clk 0:00:16]} 41... Bd4 {[%clk 0:00:17]}
42. Rg4 {[%clk 0:00:16.5]} 42... Bxe3 {[%clk 0:00:16.7]} 43. Kxe3 {[%clk
0:00:17.2]} 43... Re7 {[%clk 0:00:14.1]} 44. Rxe4 {[%clk 0:00:15.5]} 44... Rxe4+
{[%clk 0:00:14]} 45. Kxe4 {[%clk 0:00:16.4]} 45... Rxg5 {[%clk 0:00:14]} 46.
Rxf7 {[%clk 0:00:17.1]} 46... Kb5 {[%clk 0:00:13.9]} 47. Rf6 {[%clk 0:00:14.8]}
47... Rg4+ {[%clk 0:00:13.9]} 48. Kd3 {[%clk 0:00:14.8]} 48... Rg2 {[%clk
0:00:13.6]} 49. Kc3 {[%clk 0:00:13.7]} 49... g5 {[%clk 0:00:11.4]} 50. a4+
{[%clk 0:00:13.3]} 50... Ka5 {[%clk 0:00:11.5]} 51. Rf5 {[%clk 0:00:14]} 51...
Kb6 {[%clk 0:00:10.4]} 52. Rf6+ {[%clk 0:00:13.1]} 52... Kb7 {[%clk 0:00:10.6]}
53. Kc4 {[%clk 0:00:12.4]} 53... g4 {[%clk 0:00:10.6]} 54. Kxc5 {[%clk
0:00:11.6]} 54... Rg1 {[%clk 0:00:10.3]} 55. Rf7+ {[%clk 0:00:11.6]} 55... Kc8
{[%clk 0:00:10.8]} 56. b4 {[%clk 0:00:11.6]} 56... Rb1 {[%clk 0:00:09.7]} 57. a5
{[%clk 0:00:10.7]} 57... Rb2 {[%clk 0:00:09.5]} 58. Rf4 {[%clk 0:00:10.3]} 58...
Kc7 {[%clk 0:00:08.7]} 59. Rf7+ {[%clk 0:00:10.4]} 59... Kc8 {[%clk 0:00:07.6]}
60. Rg7 {[%clk 0:00:11]} 60... Rxf2 {[%clk 0:00:06.1]} 61. Rxg4 {[%clk
0:00:11.6]} 61... Rf5+ {[%clk 0:00:06.1]} 62. Kc6 {[%clk 0:00:10.9]} 62... Rf6+
{[%clk 0:00:06.5]} 63. Kc5 {[%clk 0:00:11.4]} 63... Rf5+ {[%clk 0:00:06.6]} 64.
Kc4 {[%clk 0:00:12.1]} 64... Rf6 {[%clk 0:00:06.9]} 65. Rg7 {[%clk 0:00:12]}
65... Kb8 {[%clk 0:00:06]} 66. Kc5 {[%clk 0:00:12.3]} 66... Rh6 {[%clk
0:00:06.2]} 67. Rd7 {[%clk 0:00:12.2]} 67... Rh5+ {[%clk 0:00:06.4]} 68. Rd5
{[%clk 0:00:12.6]} 68... Rh4 {[%clk 0:00:06.5]} 69. Rd6 {[%clk 0:00:11.8]} 69...
Kb7 {[%clk 0:00:05.2]} 70. Rd7+ {[%clk 0:00:12.1]} 70... Kb8 {[%clk 0:00:05.1]}
71. Rd4 {[%clk 0:00:13]} 71... Rh5+ {[%clk 0:00:03.8]} 72. Kc6 {[%clk
0:00:11.2]} 72... Rh6+ {[%clk 0:00:03.3]} 73. Rd6 {[%clk 0:00:11.1]} 73... Rh4
{[%clk 0:00:03.7]} 74. Rd8+ {[%clk 0:00:11.3]} 74... Ka7 {[%clk 0:00:04]} 75.
Rd7+ {[%clk 0:00:11.2]} 75... Ka8 {[%clk 0:00:04.5]} 76. Kc5 {[%clk 0:00:11]}
76... Rh5+ {[%clk 0:00:04.1]} 77. Rd5 {[%clk 0:00:11.9]} 77... Rh4 {[%clk
0:00:03.9]} 78. Rd8+ {[%clk 0:00:08.9]} 78... Kb7 {[%clk 0:00:03.9]} 79. Rd7+
{[%clk 0:00:09.8]} 79... Kb8 {[%clk 0:00:03.8]} 80. Rd6 {[%clk 0:00:10.7]} 80...
Kb7 {[%clk 0:00:03.9]} 81. Rb6+ {[%clk 0:00:10.5]} 81... Ka7 {[%clk 0:00:04.4]}
82. Re6 {[%clk 0:00:10.7]} 82... Rh5+ {[%clk 0:00:05]} 83. Kd6 {[%clk 0:00:11]}
83... Rh4 {[%clk 0:00:05.4]} 84. Re7+ {[%clk 0:00:10.3]} 84... Kb8 {[%clk
0:00:03.8]} 85. Kc5 {[%clk 0:00:11.2]} 85... Ka8 {[%clk 0:00:03.5]} 86. Re3
{[%clk 0:00:10.3]} 86... Rh5+ {[%clk 0:00:03.9]} 87. Kc6 {[%clk 0:00:10]} 87...
Rh6+ {[%clk 0:00:04.4]} 88. Kc7 {[%clk 0:00:10.5]} 88... Rh7+ {[%clk 0:00:04.2]}
89. Kb6 {[%clk 0:00:10.4]} 89... Rh6+ {[%clk 0:00:04.6]} 90. Kc5 {[%clk
0:00:09.9]} 90... Rh5+ {[%clk 0:00:05]} 91. Kc4 {[%clk 0:00:10.5]} 91... Rh4+
{[%clk 0:00:04.9]} 92. Kb3 {[%clk 0:00:11.1]} 92... Rh5 {[%clk 0:00:05.2]} 93.
Re8+ {[%clk 0:00:11.3]} 93... Kb7 {[%clk 0:00:05.6]} 94. Re4 {[%clk 0:00:12.2]}
94... Rh6 {[%clk 0:00:05.4]} 95. Rc4 {[%clk 0:00:13.1]} 95... Rh5 {[%clk
0:00:05.5]} 96. Rc6 {[%clk 0:00:13.5]} 96... Kxc6 {[%clk 0:00:04.2]} 0-1